bitfinex/quotes_ETHUSD_20220119
["timestamp","ask_amount","ask_price","bid_price","bid_amount"]
[1642591035154,0.00397897,3124.0,3123.0,1.60157]
[1642591035354,0.92884,3124.2,3123.0,1.60157]
[1642591035355,0.128,3123.9,3123.3,1.60153]
[1642591035554,0.00341054,3123.9,3123.3,1.60153]
[1642591035754,0.00284212,3123.8,3123.3,1.60153]
[1642591036154,0.0022737,3123.7,3123.4,0.80077]
[1642591036555,0.00170527,3123.6,3123.4,0.80072]
[1642591037008,0.00113685,3123.5,3123.4,0.80072]
[1642591037208,0.00113685,3123.5,3123.3,3.20297]
[1642591038617,0.00113685,3123.5,3123.1,0.00113685]
[1642591038919,0.21665384,3123.4,3123.1,0.00113685]
[1642591039211,0.11193333,3123.3,3122.6,0.00397896]
[1642591039412,0.00113685,3123.5,3122.6,0.00397896]
[1642591039413,0.12093102,3123.1,3122.6,0.00397896]
[1642591039611,0.00113685,3123.5,3122.2,0.00625266]
[1642591039612,0.128,3123.0,3122.2,0.00625266]
[1642591039811,0.128,3123.0,3121.8,1.60225]
[1642591039812,0.8012,3122.8,3121.9,0.00795793]
[1642591040014,0.21512268,3122.7,3121.9,0.00795793]
[1642591040212,0.08163905,3122.6,3121.9,0.00795793]
[1642591040412,0.128,3122.7,3121.9,0.00795793]
[1642591040659,0.128,3122.7,3121.7,0.00909477]
[1642591040660,1.1097189,3122.5,3121.7,0.00909477]
[1642591040859,3.95258419,3122.4,3121.6,0.0096632]
[1642591041061,0.128,3122.3,3121.6,0.0096632]
[1642591041260,0.128,3122.3,3121.2,0.01193689]
[1642591042163,0.80142,3122.2,3121.5,0.80132]
[1642591042364,0.3,3122.2,3121.5,0.80132]
[1642591042564,0.3,3122.2,3121.6,0.0096632]
[1642591042766,3.23502157,3122.7,3121.6,0.0096632]
[1642591042984,3.2,3122.7,3121.7,0.386]
[1642591043167,3.2,3122.7,3122.6,1.3990703]
[1642591043564,3.2,3122.7,3122.6,0.00397896]
[1642591044331,3.2,3122.7,3122.5,0.00454739]
[1642591044734,6.278,3122.6,3122.5,0.00454739]
[1642591044934,6.278,3122.6,3122.4,0.00511581]
[1642591045136,7.07921,3122.6,3122.1,0.00682108]
[1642591045535,0.0834347,3122.5,3122.1,0.00682108]
[1642591045735,0.128,3122.4,3121.8,0.00852635]
[1642591045934,1.128,3122.5,3121.8,0.00852635]
[1642591046137,2.75100294,3122.5,3121.8,0.00852635]
[1642591046441,2.75100294,3122.5,3121.6,0.0096632]
[1642591046442,0.80127,3122.4,3121.6,0.0096632]
[1642591046640,0.128,3122.3,3121.6,0.0096632]
[1642591047036,0.428,3122.3,3121.2,0.01193689]
[1642591047437,0.11118922,3122.0,3121.2,1.61459689]
[1642591047637,0.128,3121.9,3121.2,2.41603689]
[1642591047836,0.428,3122.0,3121.3,0.81272847]
[1642591048070,0.128,3122.0,3121.3,2.41534847]
[1642591048260,0.128,3122.5,3121.4,0.01080004]
[1642591048460,0.80123,3122.5,3121.4,0.01080004]
[1642591048662,0.11288615,3122.3,3121.4,0.01080004]
[1642591048859,0.128,3122.5,3121.4,0.01080004]
[1642591049062,0.13039519,3122.4,3121.4,0.01080004]
[1642591049267,0.08192618,3122.2,3121.4,0.01080004]
[1642591049463,0.80156,3121.9,3121.4,0.01080004]
[1642591049661,3.84898983,3121.8,3121.1,0.01250531]
[1642591049864,3.84898983,3121.8,3120.5,1.60305]
[1642591049865,0.428,3121.8,3120.8,0.01421058]
[1642591050064,0.128,3121.8,3120.9,0.01274564]
[1642591050260,0.128,3122.1,3121.0,1.25701119]
[1642591050459,0.128,3122.1,3121.0,1.27008493]
[1642591050662,0.128,3122.1,3121.1,0.01250531]
[1642591051059,0.128,3122.1,3121.3,0.80142]
[1642591051263,0.13624138,3122.0,3121.3,0.80142]
[1642591051459,0.128,3121.9,3121.4,0.01080004]
[1642591051661,0.80142,3121.8,3121.4,0.01080004]
[1642591051909,0.128,3121.7,3121.4,0.01080004]
[1642591052105,1.51686332,3121.6,3121.4,0.01080004]
[1642591052307,6.978,3121.5,3120.9,1.603]
[1642591052507,0.11671336,3121.4,3120.9,1.603]
[1642591052711,0.11671336,3121.4,3120.0,1.535123]
[1642591052712,0.01269755,3121.0,3120.0,1.535123]
[1642591052912,2.85,3120.1,3118.9,7.45]
[1642591053112,0.386,3120.3,3120.1,0.00341054]
[1642591053309,0.3,3120.4,3120.1,0.00341054]
[1642591053508,0.128,3120.8,3120.1,0.80173]
[1642591053708,0.0022737,3121.1,3120.1,0.80173]
[1642591053908,0.0022737,3121.1,3120.7,0.80145]
[1642591054109,0.0022737,3121.1,3120.6,0.01223627]
[1642591054110,0.00170527,3121.0,3120.6,0.01223627]
[1642591054513,0.00113685,3120.9,3120.7,1.24463768]
[1642591054708,0.00113685,3120.9,3120.7,2.04608768]
[1642591054910,0.00397897,3121.4,3120.7,0.80145]
[1642591055107,0.13197897,3121.4,3120.7,1.60289]
[1642591055307,0.00341054,3121.3,3120.7,0.80145]
[1642591055571,0.00341054,3121.3,3120.2,0.00284212]
[1642591055572,0.10026017,3121.3,3120.2,0.00284212]
[1642591055771,0.13084212,3121.2,3120.2,1.60610212]
[1642591055968,0.13084212,3121.2,3120.2,1.60326]
[1642591056173,0.13084212,3121.2,3120.3,0.00227369]
[1642591056174,0.8039511,3121.1,3120.3,0.00227369]
[1642591056376,0.14245749,3120.9,3120.3,0.00227369]
[1642591056580,0.128,3121.0,3120.3,0.00227369]
[1642591056581,0.09965883,3120.7,3120.3,0.00227369]
[1642591056775,0.09965883,3120.7,3119.4,0.01233549]
[1642591056776,0.128,3120.6,3119.8,1.60351]
[1642591056975,0.12913685,3120.9,3119.5,0.00682108]
[1642591057179,0.80182,3120.5,3119.9,0.00454739]
[1642591057480,0.08631544,3120.3,3119.4,0.01255129]
[1642591057681,0.3,3120.5,3119.5,0.8018]
[1642591057878,0.3,3120.5,3119.6,1.60364]
[1642591058078,0.1282,3120.4,3120.0,1.7752499]
[1642591058280,0.38713685,3120.9,3120.0,1.7752499]
[1642591058281,0.1282,3120.7,3120.0,1.7752499]
[1642591058478,0.00113685,3120.9,3120.0,1.7752499]
[1642591058678,0.00113685,3120.9,3120.4,0.80154]
[1642591059077,0.00113685,3120.9,3120.8,2.20539358]
[1642591059504,0.00113685,3120.9,3120.8,5.90539358]
[1642591059705,0.00113685,3120.9,3120.8,3.68700456]
[1642591059904,0.00113685,3120.9,3120.8,2.20539358]
[1642591060506,0.00113685,3120.9,3120.7,0.80134]
[1642591060911,0.00113685,3120.9,3120.8,4.0]
[1642591061305,0.13819997,3122.1,3120.9,6.3]
[1642591061508,0.13819997,3122.1,3121.2,0.80122]
[1642591061708,0.13819997,3122.1,3121.8,1.32353846]
[1642591061709,0.00625266,3122.0,3121.8,1.32353846]
[1642591061911,0.00625266,3122.0,3121.9,3.1742565]
[1642591062111,0.83666674,3122.8,3121.9,2.9]
[1642591062112,0.128,3122.8,3121.9,2.9]
[1642591062311,0.128,3123.0,3121.9,2.9]
[1642591062508,0.0096632,3122.6,3121.9,2.9]
[1642591062709,0.0096632,3122.6,3122.2,2.47023975]
[1642591062909,2.39895,3122.0,3121.9,1.60201]
[1642591063158,2.39895,3122.0,3121.8,0.80113]
[1642591063358,2.40520266,3122.0,3121.8,0.80113]
[1642591063556,0.00568423,3121.9,3121.8,0.80113]
[1642591063756,0.00568423,3121.9,3121.8,1.60228]
[1642591063956,0.00568423,3121.9,3121.8,3.62147042]
[1642591064157,0.40803423,3122.0,3121.9,2.7]
[1642591064357,0.40803423,3122.0,3121.8,3.63382486]
[1642591064561,0.40803423,3122.0,3121.9,1.18176091]
[1642591066361,0.128,3122.9,3122.0,2.4]
[1642591066564,0.128,3123.2,3122.7,1.75608986]
[1642591066808,3.40511581,3122.8,3122.6,0.80099]
[1642591067207,0.00454739,3122.7,3122.5,1.60197]
[1642591067613,0.00397897,3122.6,3122.5,1.60197]
[1642591067807,0.00397897,3122.6,3122.4,3.88409761]
[1642591068211,0.128,3123.4,3122.4,3.88409761]
[1642591068212,0.128,3123.4,3122.5,5.15]
[1642591068412,5.0624,3124.2,3122.6,3.16925304]
[1642591068413,0.128,3123.6,3122.6,3.16925304]
[1642591068613,0.128,3123.6,3122.5,5.15]
[1642591068614,0.00454739,3122.7,3122.5,5.15]
[1642591068810,0.80076,3124.4,3122.6,8.40152]
[1642591069011,0.128,3124.3,3123.0,1.60149]
[1642591069212,0.00738951,3124.0,3123.3,2.07607067]
[1642591069411,0.128,3123.9,3123.0,1.60149]
[1642591069613,0.13482108,3123.9,3123.0,1.60147]
[1642591069813,0.00625266,3123.8,3123.2,0.80088]
[1642591070013,0.128,3123.7,3123.2,0.80088]
[1642591070219,0.13368424,3123.7,3123.2,0.80088]
[1642591070414,0.13368424,3123.7,3123.1,1.60172]
[1642591070415,0.00511581,3123.6,3123.1,1.60172]
[1642591070652,0.128,3123.5,3123.1,1.60172]
[1642591070853,0.93353739,3123.5,3123.1,1.60172]
[1642591071053,0.00397897,3123.4,3123.1,1.60172]
[1642591071253,0.128,3123.3,3123.1,1.60172]
[1642591071452,0.00341054,3123.3,3123.1,1.60172]
[1642591071652,0.00284212,3123.2,3123.1,1.60172]
[1642591075121,0.00284212,3123.2,3122.5,1.60203]
[1642591075319,0.128,3123.1,3121.8,3.16925304]
[1642591075523,0.13027369,3123.1,3121.9,2.29206501]
[1642591075718,0.00170527,3123.0,3121.9,2.2966124]
[1642591075919,0.128,3122.9,3122.0,0.00397896]
[1642591076119,0.12913685,3122.9,3122.0,0.00397896]
[1642591076518,1.10116,3122.8,3122.0,0.00397896]
[1642591076727,0.929271,3122.7,3122.0,0.00397896]
[1642591076920,0.96548278,3122.7,3121.8,0.80126]
[1642591077120,0.3,3122.6,3121.8,0.80126]
[1642591077320,0.128,3122.5,3121.9,0.00454739]
[1642591078060,0.80127,3122.4,3121.9,0.00454739]
[1642591078455,1.10127,3122.4,3121.9,0.00454739]
[1642591078655,1.10127,3122.4,3120.7,0.128]
[1642591078656,0.801393,3122.2,3120.7,0.128]
[1642591078857,0.801393,3122.2,3119.9,1.1214808]
[1642591078858,0.128,3122.1,3121.7,0.00113684]
[1642591079059,0.42913685,3122.1,3121.7,0.00113684]
[1642591079257,1.23047685,3122.1,3121.0,0.00511581]
[1642591079458,1.23047685,3122.1,3120.8,0.80135]
[1642591079660,1.23047685,3122.1,3120.9,0.00568423]
[1642591080060,0.3,3122.0,3120.9,0.00568423]
[1642591080265,1.0250424,3121.9,3120.9,0.00568423]
[1642591080460,1.0250424,3121.9,3120.6,0.0073895]
[1642591080461,0.9294,3121.9,3120.6,0.0073895]
[1642591080662,2.2294,3121.9,3120.2,0.0096632]
[1642591080859,0.428,3121.9,3120.8,2.01348931]
[1642591081059,2.2294512,3121.9,3120.8,2.01348931]
[1642591081259,2.2294512,3121.9,3120.9,0.80718423]
[1642591081260,0.80145,3121.7,3120.9,0.80718423]
[1642591081458,0.128,3121.6,3120.9,0.00568423]
[1642591081659,1.73111,3121.6,3121.0,0.00511581]
[1642591081917,1.7684711,3121.6,3120.8,0.00625265]
[1642591082317,1.7684711,3121.6,3120.9,0.80155]
[1642591082724,1.7684711,3121.6,3120.5,1.60317]
[1642591082725,6.85,3121.3,3120.5,1.60317]
[1642591082923,6.85,3121.3,3118.9,1.1383]
[1642591082924,2.27554383,3121.2,3118.8,4.8100915]
[1642591083123,0.09899522,3121.0,3120.6,0.00227369]
[1642591083324,0.514,3120.9,3120.6,0.00227369]
[1642591083520,0.814,3120.9,3119.9,0.80181]
[1642591083727,0.8018,3120.6,3120.1,3.6905744]
[1642591084020,0.8018,3120.6,3120.0,0.00568423]
[1642591084021,0.128,3120.5,3120.0,0.00568423]
[1642591084225,0.128,3120.5,3120.2,0.00454739]
[1642591084420,0.128,3120.5,3120.0,0.00568423]
[1642591084622,0.80177,3120.4,3120.0,0.00568423]
[1642591084822,0.80177,3120.4,3119.8,0.00682108]
[1642591084823,0.15808509,3120.2,3119.8,0.00682108]
[1642591085023,0.15808509,3120.2,3119.6,0.00795793]
[1642591085024,0.1282,3120.1,3119.6,0.00795793]
[1642591085224,0.47350907,3120.0,3119.6,0.00795793]
[1642591085425,0.1282,3119.9,3119.1,0.01080004]
[1642591085652,0.386,3119.8,3119.0,0.01136847]
[1642591085956,0.93034,3119.7,3118.8,0.01250531]
[1642591086156,0.386,3119.6,3118.8,0.01250531]
[1642591086455,4.8447,3120.1,3118.8,0.01250531]
[1642591086456,0.386,3120.3,3118.9,1.60398]
[1642591086652,0.386,3120.3,3118.9,2.40584]
[1642591086855,0.1282,3120.2,3119.0,0.01136847]
[1642591087055,0.1282,3120.2,3119.7,2.1592153]
[1642591087255,3.55525304,3120.7,3119.7,2.1592153]
[1642591087256,0.1282,3120.6,3119.8,0.8018]
[1642591087457,0.1282,3120.6,3119.8,0.80862108]
[1642591087657,0.80181,3120.3,3119.9,0.00625266]
[1642591087856,0.1282,3120.2,3119.9,0.00625266]
[1642591088061,2.4877695,3120.7,3119.9,0.00625266]
[1642591088062,0.1282,3120.8,3119.9,0.00625266]
[1642591088260,0.01261887,3120.4,3119.8,0.49175266]
[1642591088464,3.20745301,3121.0,3119.6,1.6036]
[1642591088465,0.1282,3120.3,3119.6,1.6036]
[1642591088660,0.0022737,3120.3,3119.8,0.80182]
[1642591088862,0.08846709,3120.2,3119.7,0.00113684]
[1642591089062,0.00170527,3120.2,3119.7,0.00113684]
[1642591089330,0.12933685,3120.1,3119.7,2.31387756]
[1642591089531,0.00113685,3120.1,3119.7,2.31274072]
[1642591089733,0.0022737,3120.3,3119.7,3.11458072]
[1642591090234,0.00170527,3120.2,3119.7,3.91619072]
[1642591090431,0.00170527,3120.2,3119.8,1.603]
[1642591090634,3.8869,3121.2,3119.8,3.20595]
[1642591090839,4.05434889,3121.8,3119.8,3.20595]
[1642591090840,0.128,3121.8,3119.9,1.60294]
[1642591091041,0.00568424,3121.1,3119.9,0.81502662]
[1642591091237,0.00568424,3121.1,3120.3,0.80134]
[1642591091439,0.00511581,3121.0,3120.1,1.60268]
[1642591091639,0.00511581,3121.0,3120.2,4.79404198]
[1642591091836,0.128,3121.6,3120.4,0.80152]
[1642591091837,0.00454739,3120.9,3120.4,0.80152]
[1642591092240,0.03787614,3121.9,3120.4,0.80152]
[1642591092241,0.00397897,3120.8,3120.4,0.80152]
[1642591092440,0.00397897,3120.8,3120.4,1.60295]
[1642591092637,3.81215376,3122.7,3120.7,4.4]
[1642591092638,4.19501753,3122.6,3120.7,4.4]
[1642591092837,0.128,3122.6,3120.7,6.00255]
[1642591093051,0.0096632,3122.4,3121.9,1.19244942]
[1642591093257,0.0096632,3122.4,3120.9,2.40362]
[1642591093258,0.128,3122.3,3120.9,2.40362]
[1642591093457,0.13709478,3122.3,3120.9,2.40362]
[1642591093662,0.00852635,3122.2,3120.9,3.2049]
[1642591093859,0.00852635,3122.2,3121.1,2.33234912]
[1642591094057,0.13595793,3122.1,3121.3,1.60241]
[1642591094260,0.00795793,3122.1,3121.4,1.29529805]
[1642591094459,0.00738951,3122.0,3121.5,0.80136]
[1642591094661,0.09961443,3121.9,3121.5,0.80136]
[1642591094860,0.11619803,3121.7,3121.3,1.60241]
[1642591095062,0.128,3121.8,3120.9,1.60288]
[1642591095063,0.128,3121.6,3120.9,1.60288]
[1642591095262,0.128,3121.6,3119.8,3.20564]
[1642591095263,0.00511581,3121.6,3119.8,3.20564]
[1642591095459,0.51854739,3121.5,3119.5,3.17690333]
[1642591095660,0.80169,3121.2,3120.1,0.00341054]
[1642591095862,0.128,3121.1,3119.6,0.00625266]
[1642591096061,0.1302737,3121.1,3120.1,0.00341054]
[1642591096265,0.00170527,3121.0,3120.1,1.60328]
[1642591096462,0.514,3120.9,3120.1,1.60328]
[1642591096804,0.8018,3120.7,3120.2,0.00284212]
[1642591097009,0.26105889,3120.6,3120.2,0.00284212]
[1642591097210,0.128,3120.6,3120.2,0.00284212]
[1642591097410,0.128,3120.6,3119.4,0.0073895]
[1642591097411,0.386,3120.5,3119.4,0.0073895]
[1642591097608,0.386,3120.5,3119.2,0.9897]
[1642591097609,0.1282,3120.4,3119.7,0.00568423]
[1642591097910,0.1282,3120.4,3119.3,0.00795793]
[1642591097911,19.05,3120.2,3119.3,0.00795793]
[1642591098108,0.5142,3120.1,3119.3,0.00795793]
[1642591098308,0.80205,3119.9,3119.3,0.00795793]
[1642591098612,0.1282,3119.8,3119.3,0.00795793]
[1642591098813,0.1282,3120.1,3119.4,1.70486384]
[1642591099111,0.1282,3120.1,3119.5,0.00682108]
[1642591099312,4.20836844,3120.3,3119.5,0.80860108]
[1642591099613,1.386,3120.2,3119.5,0.00682108]
[1642591099813,1.386,3120.2,3119.6,0.00625266]
[1642591099814,0.1282,3120.1,3119.6,0.00625266]
[1642591100013,0.5142,3120.1,3119.3,0.00795793]
[1642591100414,0.9653936,3120.6,3119.3,0.00795793]
[1642591100856,0.9653936,3120.6,3119.9,2.16185995]
[1642591101058,0.9653936,3120.6,3119.3,0.00795793]
[1642591101059,0.80176,3120.5,3119.3,0.00795793]
[1642591101262,0.9300562,3120.4,3120.0,0.00397896]
[1642591101467,0.9300562,3120.4,3119.8,1.60342]
[1642591101468,0.1282,3120.4,3119.8,1.60342]
[1642591101860,0.1282,3120.4,3119.9,0.00454739]
[1642591102061,0.80184,3120.3,3119.9,0.00454739]
[1642591102261,0.1282,3120.2,3119.9,0.00454739]
[1642591102461,1.23004,3120.3,3119.6,0.00625266]
[1642591102661,1.23004,3120.3,3119.6,1.60994266]
[1642591103059,1.23004,3120.3,3119.7,0.80752423]
[1642591103262,0.93004,3120.3,3119.7,0.80752423]
[1642591103467,4.13004,3120.3,3119.8,0.00511581]
[1642591103667,0.12143271,3120.2,3119.8,0.00511581]
[1642591103867,4.13004,3120.3,3119.7,0.00568423]
[1642591104071,3.3282,3120.3,3119.7,0.00568423]
[1642591104303,0.80186,3120.1,3119.7,0.00568423]
[1642591104504,1.23006,3120.1,3119.7,0.00568423]
[1642591104804,0.4282,3120.1,3119.7,0.00568423]
[1642591105005,0.1282,3120.1,3119.7,0.00568423]
[1642591105207,0.93006,3120.1,3119.7,0.00568423]
[1642591105506,0.4282,3120.1,3119.7,0.00568423]
[1642591106106,0.1282,3120.1,3119.7,0.00568423]
[1642591106307,3.2,3120.3,3120.0,2.21276373]
[1642591106714,3.2,3120.3,3120.1,0.00341054]
[1642591107311,3.2,3120.3,3120.1,1.51297423]
[1642591107615,3.5,3120.3,3120.2,0.00284212]
[1642591108056,8.1,3120.3,3120.1,0.00341054]
[1642591108262,8.1,3120.3,3120.0,0.00397896]
[1642591108461,0.09979948,3120.2,3120.0,0.00397896]
[1642591108662,8.1,3120.3,3120.0,0.00397896]
[1642591109062,8.90179,3120.3,3120.0,0.00397896]
[1642591109864,8.1,3120.3,3120.0,0.00397896]
[1642591111063,0.09732939,3120.2,3120.0,0.00397896]
[1642591111467,8.1,3120.3,3120.0,0.00397896]
[1642591111910,0.10030841,3120.2,3120.0,0.00397896]
[1642591112111,0.1282,3120.1,3119.9,0.00454739]
[1642591112506,0.1282,3120.1,3119.7,0.80186]
[1642591112707,0.1282,3120.1,3119.6,0.00625266]
[1642591112908,0.1282,3120.1,3119.2,1.60379]
[1642591112909,4.54212611,3120.1,3119.8,0.00511581]
[1642591113107,2.10188,3120.0,3119.6,0.00625266]
[1642591113307,3.67655781,3119.9,3119.3,0.00795793]
[1642591113513,3.67655781,3119.9,3118.9,7.45]
[1642591113514,0.08186696,3119.6,3119.0,0.0096632]
[1642591113709,0.08266389,3119.4,3119.0,0.0096632]
[1642591113910,0.08266389,3119.4,3118.4,3.20697]
[1642591113911,0.1282,3119.3,3118.8,1.60404]
[1642591114308,0.1282,3119.3,3118.9,0.01023162]
[1642591114513,0.1282,3119.3,3118.9,0.81223162]
[1642591114911,0.1282,3119.3,3119.0,0.0096632]
[1642591115562,0.4282,3119.3,3119.0,0.0096632]
[1642591115762,0.3,3119.3,3119.0,0.0096632]
[1642591115962,0.1282,3119.6,3119.1,0.80201]
[1642591116163,0.1282,3119.7,3119.1,0.80201]
[1642591116365,0.1282,3119.7,3119.2,0.00852635]
[1642591116564,1.1282,3119.7,3119.2,0.00852635]
[1642591116764,0.80201,3119.5,3118.9,0.01023162]
[1642591116963,0.1282,3119.4,3118.9,0.01023162]
[1642591117563,0.1282,3119.4,3119.0,0.80204]
[1642591117764,0.1282,3119.4,3119.0,0.75204]
[1642591117964,0.1282,3119.4,3119.1,0.00909477]
[1642591118265,0.80208,3119.3,3119.1,0.00909477]
[1642591118467,6.9782,3119.2,3119.1,0.00909477]
[1642591118665,6.9782,3119.2,3118.9,0.01023162]
[1642591118666,7.9782,3119.2,3118.9,0.01023162]
[1642591118865,0.0833267,3119.1,3118.8,0.80209]
[1642591119066,6.9782,3119.2,3118.8,0.80209]
[1642591119309,6.9782,3119.2,3118.9,0.01023162]
[1642591120611,0.90406593,3119.1,3118.9,0.01023162]
[1642591120814,1.20406593,3119.1,3118.9,0.01023162]
[1642591121114,2.1021,3119.1,3118.6,0.01193689]
[1642591121313,2.1021,3119.1,3118.7,0.80207]
[1642591121713,2.1021,3119.1,3118.8,0.01080004]
[1642591121917,5.90425579,3119.1,3118.8,0.01080004]
[1642591122119,0.12654969,3119.0,3118.8,0.01080004]
[1642591122323,6.9782,3118.9,3118.2,1.60431]
[1642591122515,1.0,3118.8,3118.3,0.01364216]
[1642591122716,1.0,3118.8,3118.4,0.8022]
[1642591122916,1.3,3118.8,3118.3,0.01364216]
[1642591123152,0.20957357,3118.7,3118.5,0.01250531]
[1642591123359,0.3,3118.8,3118.3,0.01364216]
[1642591123558,7.95215,3118.9,3118.3,0.01364216]
[1642591123957,4.2,3118.8,3118.2,0.63795216]
[1642591124159,7.504,3118.3,3118.2,0.63795216]
[1642591124660,7.804,3118.3,3118.2,0.63795216]
[1642591126662,7.504,3118.3,3118.2,0.63795216]
[1642591126921,0.00227369,3118.7,3118.3,4.36560063]
[1642591127116,0.00227369,3118.7,3118.3,5.11752063]
[1642591127419,0.00170527,3118.6,3118.3,5.11752063]
[1642591127614,0.00170527,3118.6,3118.5,1.1610022]
[1642591127814,3.2,3118.8,3118.5,1.1610022]
[1642591128014,0.03087223,3119.8,3118.6,4.90182]
[1642591128215,0.03087223,3119.8,3118.5,1.9628322]
[1642591128216,0.00227369,3118.7,3118.5,1.1610022]
[1642591128616,0.00170527,3118.6,3118.5,1.1610022]
[1642591129417,0.93009,3119.9,3118.5,1.1610022]
[1642591129716,0.00682108,3119.8,3118.7,1.60381]
[1642591129920,0.1282,3119.7,3118.7,1.60381]
[1642591130114,0.13445266,3119.7,3118.7,1.60381]
[1642591130316,0.00568423,3119.6,3118.7,1.60381]
[1642591130557,0.1282,3119.5,3119.0,1.9067376]
[1642591130760,0.13331581,3119.5,3118.9,1.60382]
[1642591130953,0.00454739,3119.4,3119.1,1.53382807]
[1642591131357,0.00397896,3119.3,3119.1,1.53382807]
[1642591131759,0.00341054,3119.2,3119.1,1.53382807]
[1642591132567,0.1282,3120.5,3119.2,6.8]
[1642591132765,1.07382901,3121.2,3119.2,6.8]
[1642591132766,0.1282,3120.9,3119.4,0.80161]
[1642591132961,0.1282,3120.9,3120.5,2.00414745]
[1642591133961,0.08107805,3120.8,3120.5,2.00414745]
[1642591134160,0.128,3120.7,3120.5,2.00414745]
[1642591134408,0.00852635,3120.7,3120.5,0.80158]
[1642591134606,0.128,3120.6,3120.5,0.80158]
[1642591136112,0.128,3120.6,3120.4,1.60315]
[1642591136313,0.128,3120.6,3119.7,2.5048]
[1642591136314,0.22357784,3120.6,3119.7,0.1]
[1642591136513,0.0073895,3120.5,3118.7,3.20684]
[1642591136715,0.930063,3120.4,3118.7,3.20684]
[1642591136913,0.80187,3120.0,3118.8,0.00227369]
[1642591137116,1.16599299,3119.7,3118.9,1.60394]
[1642591137318,1.16599299,3119.7,3118.5,0.00397896]
[1642591137319,0.09531566,3119.5,3118.5,0.00397896]
[1642591137517,0.1282,3119.4,3119.0,0.00113685]
[1642591137718,0.00113685,3119.4,3119.0,0.80202]
[1642591137914,0.1282,3119.3,3119.0,0.80202]
[1642591138160,0.1282,3119.4,3119.0,0.80202]
[1642591138360,0.12933685,3119.4,3119.0,0.80202]
[1642591139367,0.12933685,3119.4,3118.8,3.02627685]
[1642591139368,0.00113685,3119.4,3118.8,1.60397]
[1642591139567,0.24980282,3119.3,3118.5,1.60812896]
[1642591139768,0.24980282,3119.3,3118.3,4.36560063]
[1642591139769,0.24980282,3119.3,3118.9,0.00170527]
[1642591139970,0.63580282,3119.3,3118.6,0.00341054]
[1642591140167,0.8021737,3119.2,3118.4,0.00454739]
[1642591140474,0.1282,3119.1,3118.6,1.14568891]
[1642591140668,0.4282,3119.1,3118.6,1.14568891]
[1642591140867,0.6,3119.1,3118.7,0.00284212]
[1642591141068,0.1282,3119.2,3118.7,0.80490212]
[1642591141669,0.80208,3119.1,3118.7,0.80490212]
[1642591141907,0.3,3119.1,3118.7,0.80490212]
[1642591142111,0.00113685,3119.4,3118.7,0.80490212]
[1642591142506,0.00113685,3119.4,3119.0,1.92675997]
[1642591142707,0.00113685,3119.4,3119.0,0.80197]
[1642591142909,0.00113685,3119.4,3118.7,0.00284212]
[1642591143115,0.26149158,3119.3,3118.7,0.00284212]
[1642591143312,0.12068933,3119.0,3118.4,0.00454739]
[1642591143510,0.12265034,3118.8,3118.4,0.00454739]
[1642591143707,0.1282,3118.7,3118.4,0.00454739]
[1642591143909,0.8023,3118.6,3118.4,0.00454739]
[1642591144109,6.9282,3118.5,3118.4,0.00454739]
[1642591144607,8.2282,3118.5,3118.4,0.00454739]
[1642591144909,7.9282,3118.5,3118.4,0.00454739]
[1642591145108,8.2282,3118.5,3118.4,0.00454739]
[1642591145762,11.4282,3118.5,3118.4,0.00454739]
[1642591146157,15.19971859,3118.5,3118.4,0.00454739]
[1642591146357,11.4282,3118.5,3118.4,0.00454739]
[1642591146759,11.1282,3118.5,3118.4,0.00454739]
[1642591146961,11.4282,3118.5,3118.4,0.00454739]
[1642591147159,10.1282,3118.5,3118.4,0.00454739]
[1642591147761,10.0,3118.5,3118.4,0.00454739]
[1642591148461,3.2,3118.5,3118.4,0.00454739]
[1642591151234,4.2,3118.5,3118.4,0.00454739]
[1642591151429,9.5282,3118.5,3118.4,0.00454739]
[1642591151630,10.5282,3118.5,3118.4,0.00454739]
[1642591151829,4.6282,3118.5,3118.4,0.00454739]
[1642591152030,3.5,3118.5,3118.4,1.2163076]
[1642591152532,3.2,3118.5,3118.4,1.2163076]
[1642591152928,3.2,3118.5,3118.4,0.00454739]
[1642591154063,5.00222,3118.5,3118.4,0.00454739]
[1642591154260,5.30222,3118.5,3118.4,0.00454739]
[1642591154461,8.45222,3118.5,3118.4,0.00454739]
[1642591154663,5.60222,3118.5,3118.4,0.00454739]
[1642591154961,3.5,3118.5,3118.4,0.00454739]
[1642591156460,7.4,3118.5,3118.4,0.00454739]
[1642591157108,8.4,3118.5,3118.4,0.00454739]
[1642591157508,8.20221,3118.5,3118.4,0.00454739]
[1642591157708,7.4,3118.5,3118.4,0.00454739]
[1642591158110,4.5,3118.5,3118.4,0.00454739]
[1642591158309,6.25,3118.5,3118.4,0.00454739]
[1642591158509,7.25,3118.5,3118.4,0.00454739]
[1642591158712,6.25,3118.5,3118.4,0.00454739]
[1642591158915,7.25,3118.5,3118.4,0.00454739]
[1642591159312,4.5,3118.5,3118.4,0.00454739]
[1642591159715,3.5,3118.5,3118.4,0.00454739]
[1642591159915,4.5,3118.5,3118.4,0.00454739]
[1642591160116,3.2,3118.5,3118.4,1.45307729]
[1642591160957,3.2,3118.5,3118.4,0.00454739]
[1642591161759,3.5,3118.5,3118.3,4.15538531]
[1642591162161,7.8,3118.4,3118.3,4.15538531]
[1642591162562,7.9282,3118.4,3118.3,4.15538531]
[1642591163563,1.1282,3118.4,3118.3,4.15538531]
[1642591163769,0.1282,3118.4,3118.3,4.15538531]
[1642591163965,3.5,3118.5,3118.3,4.15538531]
[1642591163966,3.2,3118.5,3118.3,4.15538531]
[1642591164711,3.2,3118.5,3118.3,4.95742531]
[1642591164914,3.2,3118.5,3118.3,4.15538531]
[1642591165315,3.5,3118.5,3118.3,4.15538531]
[1642591166315,3.2,3118.5,3118.3,4.15538531]
[1642591166514,3.2,3118.5,3118.3,4.95741531]
[1642591166720,3.2,3118.5,3118.3,6.39041532]
[1642591166919,3.2,3118.5,3118.3,4.95741531]
[1642591167513,3.2,3118.5,3118.3,4.15538531]
[1642591168157,3.5,3118.5,3118.3,4.15538531]